Cogmind - Beta 14 @@@ ROGUE MODE // 2024.11.01 @ 01:37:52 Player: KURIIRI Result: Destroyed by D-53 Grenadier with Mini Grenade Launcher Performance ------------- Evolutions (0) 0 Regions Visited (4) 800 Robots Destroyed (27) 135 Value Destroyed (567) 567 Prototype IDs (27) 540 Alien Tech Used (0) 0 Bonus (300) 300 TOTAL SCORE: 2342 Bonus ------- Aligned with FarCom 300 Cogmind --------- Core Integrity 0/250 Matter 300/300 Energy 99/100 System Corruption 0% Temperature Cool (0) Movement Core (400) Ox7 Location -9/Mines Parts ------- > --- POWER (1) -------- (None) > --- PROPULSION (2) --- (None) > --- UTILITY (2) ------ Large Storage Unit > --- WEAPON (2) ------- Ripper > --- INVENTORY (15) --- Fission Core Wheel Improved Heat Sink Superbattery (1500) Hardened Light Armor Plating Hardened Light Armor Plating Beam Cannon Light Cannon Mace Peak State ------------ > --- POWER ------------ (None) > --- PROPULSION ------- Light Treads Wheel > --- UTILITY ---------- Large Storage Unit Hardened Light Armor Plating > --- WEAPON ----------- Beam Cannon Ripper > --- INVENTORY -------- Fission Core Wheel Improved Heat Sink Superbattery Hardened Light Armor Plating Hardened Light Armor Plating Beam Cannon Light Cannon Mace [Rating: 12] Favorites ----------- Power Ion Engine Engine Ion Engine Propulsion Light Treads Treads Light Treads Wheel Wheel Utility Hardened Light Armor Plating Device Improved Heat Sink Storage Small Storage Unit Protection Hardened Light Armor Plating Weapon Beam Cannon Energy Gun Medium Laser Energy Cannon Beam Cannon Ballistic Gun Light Assault Rifle Ballistic Cannon Light Cannon Launcher Grenade Launcher Impact Weapon Mace Slashing Weapon Ripper Build | -11 -10 -10 -10 -9 ------- Run | Yrd Mat Min Exi Min Slots Evolved . | . . . . . Power . | . . . . . Propulsion . | . . . . . Utility . | . . . . . Weapon . | . . . . . Parts Attached 30 | 7 12 8 1 2 Power 1 | 1 . . . . Engine 1 | 1 . . . . Core . | . . . . . Reactor . | . . . . . Propulsion 6 | 2 2 1 . 1 Treads 5 | 2 2 1 . . Leg . | . . . . . Wheel 1 | . . . . 1 Hover . | . . . . . Flight . | . . . . . Utility 6 | 1 3 1 1 . Device 1 | . 1 . . . Storage 2 | 1 . . 1 . Processor . | . . . . . Hackware . | . . . . . Protection 3 | . 2 1 . . Artifact . | . . . . . Weapon 17 | 3 7 6 . 1 Energy Gun 4 | 2 2 . . . Energy Cannon 4 | . 2 2 . . Ballistic Gun 1 | 1 . . . . Ballistic Cannon 3 | . 2 1 . . Launcher 3 | . 1 2 . . Special Weapon . | . . . . . Impact Weapon 1 | . . 1 . . Slashing Weapon 1 | . . . . 1 Piercing Weapon . | . . . . . Special Melee Weapon . | . . . . . Unidentified Prototypes . | . . . . . Parts Lost 9 | . . 5 . 4 Power 1 | . . 1 . . Propulsion 4 | . . 2 . 2 Utility 2 | . . 1 . 1 Weapon 2 | . . 1 . 1 Highest Loss Streak 4 | . . 3 . 4 To Critical Strikes . | . . . . . Average Slot Usage (%) 81 | . 99 72 71 73 Engine 4 | . 14 . . . Treads 19 | . 28 16 14 14 Storage 14 | . 14 14 14 14 Protection 13 | . 13 13 14 14 Energy Cannon 14 | . 16 11 14 14 Ballistic Cannon 12 | . 9 14 14 13 Peak Build Rating 12 | 6 11 9 8 12 Average Rating 8 | 4 9 7 7 8 On Entrance 6 | . 6 9 7 8 Naked Turns . | . . . . . Heaviest Build 31 | 13 21 21 31 31 Greatest Support 40 | 40 40 40 20 20 Greatest Overweight (x) 3 | . . . 1 3 Average Overweight (x) . | . . . . 1 Largest Inventory Capacity 15 | 8 8 8 15 15 Average Capacity 9 | 7 8 8 9 15 Most Carried 9 | 1 8 8 8 9 Average Carried 7 | . 7 7 7 8 Final Capacity 15 | 8 8 8 15 15 Final Carried 9 | 1 8 8 8 9 Class Distribution -------------------- 100% | Mutant Dominant Class ---------------- Mutant | -10/Materials Mutant | -10/Mines Mutant | -10/Exiles Mutant | -9/Mines Resources | -11 -10 -10 -10 -9 ----------- Run | Yrd Mat Min Exi Min Matter Collected 674 | 198 256 169 . 51 Remotely . | . . . . . Salvage Created 565 | . 317 172 . 76 Parts 43 | . 24 10 . 9 Haulers Intercepted 1 | . 1 . . . Recyclers Shooed . | . . . . . Parts Field Recycled . | . . . . . Retrieved Matter . | . . . . . Parts Self-Destructed . | . . . . . Prevented . | . . . . . Kills | -11 -10 -10 -10 -9 ------- Run | Yrd Mat Min Exi Min Combat Hostiles Destroyed 24 | . 11 10 . 3 Melee 2 | . . 1 . 1 Cannons 15 | . 6 7 . 2 AOE 7 | . 5 2 . . Classes Destroyed 9 | . 5 1 . 3 Worker 1 | . 1 . . . Builder 1 | . . . . 1 Hauler 1 | . 1 . . . Watcher 2 | . 2 . . . Swarmer 12 | . 6 6 . . Grunt 7 | . 5 2 . . Sentry 2 | . . 2 . . Demolisher 1 | . . . . 1 Assembled 2 | . . . . 2 Best Kill Streak 5 | . 5 4 . 2 Combat Bots Only 5 | . 5 4 . 2 Max Kills in Single Turn 2 | . 2 1 . 1 Gunslinging . | . . . . . Exploded 2 | . 2 1 . . Melee 1 | . . 1 . 1 Uniques/NPCs Destroyed . | . . . . . Combat | -11 -10 -10 -10 -9 -------- Run | Yrd Mat Min Exi Min Hostile Shots Fired 152 | . 39 89 . 24 Missed 30 | . 8 16 . 6 Damage Taken 1682 | . 321 965 . 396 Core 256 | . 45 126 . 85 Absorbed by Shields . | . . . . . Core Remaining (%) 100 | 100 . . . . Volleys Fired 62 | . 30 26 . 6 Largest 2 | . 2 2 . 2 Hottest 120 | . 120 95 . 95 Shots Fired 109 | . 56 41 . 12 Gun . | . . . . . Cannon 102 | . 52 38 . 12 Launcher 7 | . 4 3 . . Special . | . . . . . Kinetic 37 | . 9 22 . 6 Thermal 65 | . 43 16 . 6 Explosive 7 | . 4 3 . . Electromagnetic . | . . . . . Robot Hit Streak 9 | . 5 9 . 3 Robot Miss Streak 4 | . 4 2 . 2 Penetration Max . | . . . . . Secondary Targets . | . . . . . Shots Hit Robots 69 | . 30 29 . 10 Core Hits 39 | . 20 13 . 6 Critical Kills . | . . . . . Critical Parts Destroyed . | . . . . . Critical Strikes 5 | . 2 3 . . Blast 5 | . 2 3 . . Melee Attacks 9 | . . 3 . 6 Impact 3 | . . 3 . . Slashing 6 | . . . . 6 Piercing . | . . . . . Sneak Attacks . | . . . . . Combat Hostiles . | . . . . . Follow-up Attacks . | . . . . . Damage Inflicted 1966 | . 895 816 . 255 Guns . | . . . . . Cannons 1109 | . 551 456 . 102 Explosions 629 | . 331 298 . . Melee 208 | . . 55 . 153 Ramming 20 | . 13 7 . . Kinetic 447 | . 87 310 . 50 Thermal 662 | . 464 146 . 52 Explosive 629 | . 331 298 . . Electromagnetic . | . . . . . Impact 55 | . . 55 . . Slashing 153 | . . . . 153 Piercing . | . . . . . Highest Corruption . | . . . . . Average Corruption . | . . . . . Corruption Purged . | . . . . . Corruption Blocked . | . . . . . Overload Shots . | . . . . . Overflow Damage 52 | . . 20 . 32 Projectiles . | . . . . . Explosions 20 | . . 20 . . Melee 32 | . . . . 32 Knockbacks 8 | . 2 6 . . Impact . | . . . . . Kinetic 7 | . 1 6 . . Secondary 1 | . 1 . . . Self-Inflicted Damage 97 | . 30 67 . . Shots 4 | . 1 3 . . Rammed 5 | . 4 1 . . Targets Rammed 5 | . 4 1 . . Kicked . | . . . . . Crushed . | . . . . . Highest Temperature 358 | . 332 358 . 225 Average Temperature 151 | . 134 191 . 109 Received Heat Transfer 462 | . 72 330 . 60 Effects 1 | . . 1 . . Interference 1 | . . 1 . . Siege Activations . | . . . . . Robots Corrupted . | . . . . . Combat Hostiles . | . . . . . Parts Fried . | . . . . . Impact Corruptions . | . . . . . Robots Melted . | . . . . . Combat Hostiles . | . . . . . Parts Melted 2 | . 2 . . . Heat Transferred 1369 | . 962 296 . 111 Parts Sabotaged . | . . . . . Parts Stolen . | . . . . . Parts Stripped . | . . . . . Power Chain Reactions . | . . . . . Alert | -11 -10 -10 -10 -9 ------- Run | Yrd Mat Min Exi Min Peak Influence 228 | . 194 228 . 36 Initial 16 | . . 16 . . Average 53 | . 71 79 . 1 Maximum Alert Level 1 | . . 1 . . Low Security (%) 99 | 100 100 97 . 100 Level 1 . | . . 2 . . Level 2 . | . . . . . Level 3 . | . . . . . Level 4 . | . . . . . Level 5 . | . . . . . High Security . | . . . . . Max Security . | . . . . . Squads Dispatched 1 | . 1 . . . Investigation 1 | . 1 . . . Extermination . | . . . . . Reinforcement . | . . . . . Assault . | . . . . . Garrison . | . . . . . Intercept . | . . . . . Searches Triggered . | . . . . . Construction Impeded . | . . . . . Haulers Reinforced . | . . . . . Active Scanning Responses . | . . . . . Cargo Convoy Interrupts . | . . . . . Stealth | -11 -10 -10 -10 -9 --------- Run | Yrd Mat Min Exi Min Distress Signals 2 | . 2 . . . Communications Jammed . | . . . . . Distress Signals . | . . . . . Times Spotted 35 | . 15 10 . 10 Peak Tracking Total 6 | . 5 4 . 6 Tactical Retreats 2 | . 2 . . . Traps | -11 -10 -10 -10 -9 ------- Run | Yrd Mat Min Exi Min Traps Triggered 1 | . 1 . . . Indirectly . | . . . . . Trap Hack Attempts . | . . . . . Triggered . | . . . . . Disarmed . | . . . . . Reprogrammed . | . . . . . Reused . | . . . . . Traps Extracted . | . . . . . Installed . | . . . . . Triggered . | . . . . . Machines | -11 -10 -10 -10 -9 ---------- Run | Yrd Mat Min Exi Min Machines Disabled 1 | . . 1 . . Max in Single Turn 1 | . . 1 . . Machines Repaired . | . . . . . Machines Dismantled . | . . . . . Machines Sabotaged . | . . . . . Overloaded Fab Kills . | . . . . . Hacking | -11 -10 -10 -10 -9 --------- Run | Yrd Mat Min Exi Min Machines Accessed 10 | . 8 . 2 . Terminals 8 | . 8 . . . Fabricators . | . . . . . Repair Stations . | . . . . . Recycling Units . | . . . . . Scanalyzers . | . . . . . Garrison Access . | . . . . . Total Hacks 28 | . 26 . 2 . Successful 17 | . 15 . 2 . Failed 10 | . 10 . . . Catastrophic 2 | . 2 . . . Database Lockouts 1 | . 1 . . . Manual 17 | . 16 . 1 . Terminals 26 | . 26 . . . Fabricators . | . . . . . Repair Stations . | . . . . . Recycling Units . | . . . . . Scanalyzers . | . . . . . Garrison Access . | . . . . . Terminal Hacks 12 | . 10 . 2 . Record 1 | . . . 1 . Robot Analysis 2 | . 2 . . . Prototype ID Bank 3 | . 3 . . . Emergency Access Points 1 | . 1 . . . Terminal Index 1 | . 1 . . . Unreport Threat 1 | . 1 . . . Locate Traps 2 | . 2 . . . Derelict Proto ID Bank 1 | . . . 1 . Fabricator Hacks . | . . . . . Repair Station Hacks . | . . . . . Recycling Unit Hacks . | . . . . . Scanalyzer . | . . . . . Garrison Access Hacks . | . . . . . Unauthorized Hacks 5 | . 5 . . . Terminals 5 | . 5 . . . Botnet 4 | . 4 . . . Operators 1 | . 1 . . . Fabricators . | . . . . . Repair Stations . | . . . . . Recycling Units . | . . . . . Scanalyzers . | . . . . . Garrison Access . | . . . . . Data Cores Recovered . | . . . . . Used . | . . . . . Hacking Detections 7 | . 7 . . . Full Trace Events 2 | . 2 . . . Feedback Events . | . . . . . Feedback Blocked . | . . . . . Robot Schematics Acquired . | . . . . . Robots Built . | . . . . . Authchips . | . . . . . Time . | . . . . . Total Robot Build Rating . | . . . . . Part Schematics Acquired . | . . . . . Parts Built . | . . . . . Authchips . | . . . . . Time . | . . . . . Total Part Build Rating . | . . . . . Parts Repaired . | . . . . . Time . | . . . . . Parts Recycled . | . . . . . Recycled Matter . | . . . . . Retrieved Matter . | . . . . . Retrieved Components . | . . . . . Parts Scanalyzed . | . . . . . Part Schematics Acquired . | . . . . . Parts Damaged . | . . . . . Bothacking | -11 -10 -10 -10 -9 ------------ Run | Yrd Mat Min Exi Min Used RIF Installer . | . . . . . Robots Hacked . | . . . . . Non-combat . | . . . . . Combat . | . . . . . Robot Hacks Applied . | . . . . . Relay Couplers Released . | . . . . . Fabnet Peak Effective % . | . . . . . Robots Rewired . | . . . . . Allies Hacked . | . . . . . Hacks Repelled . | . . . . . Allies | -11 -10 -10 -10 -9 -------- Run | Yrd Mat Min Exi Min Total Allies . | . . . . . Largest Group . | . . . . . Highest-Rated Group . | . . . . . Highest-Rated Ally . | . . . . . Total Orders . | . . . . . Ally Attacks . | . . . . . Total Damage . | . . . . . Kills . | . . . . . Allies Corrupted . | . . . . . Allies Melted . | . . . . . Intel | -11 -10 -10 -10 -9 ------- Run | Yrd Mat Min Exi Min Robot Analysis Total 2 | . 2 . . . Derelict Logs Recovered 3 | . . 3 . . Drone Launches . | . . . . . Drone Recoveries . | . . . . . Exploration | -11 -10 -10 -10 -9 ------------- Run | Yrd Mat Min Exi Min Turns Passed 2888 | 97 956 805 415 615 Spaces Moved 1495 | 58 502 447 241 247 Core 6 | 6 . . . . Treads 1442 | 52 502 447 241 200 Legs . | . . . . . Wheels 47 | . . . . 47 Hover . | . . . . . Flight . | . . . . . Fastest Speed 50 | 50 160 160 160 110 Average Speed 170 | 148 160 160 171 218 Slowest Speed 240 | 160 160 160 240 240 Overloaded Moves . | . . . . . Propulsion Burnouts . | . . . . . Robots Hopped . | . . . . . Cave-ins Triggered . | . . . . . Exploration Rate (%) 61 | 5 91 93 59 57 Regions Visited 4 Branch Regions 3 Pre-discovered Areas 2 | . . 1 1 . Known Exits Taken . | . . . . . Unknown Exits Taken 4 | 1 1 1 1 . Scrap Searched 1 | . . 1 . . Spaces Dug 2 | . . . . 2 Terrain Destroyed 39 | . 21 16 . 2 Melee 2 | . . . . 2 Projectile . | . . . . . AOE 37 | . 21 16 . . Terrain Rammed . | . . . . . Walls Destroyed . | . . . . . Machines Disabled . | . . . . . Actions | -11 -10 -10 -10 -9 --------- Run | Yrd Mat Min Exi Min Total 1697 | 65 596 488 246 302 Wait 70 | . 30 . . 40 Move 1491 | 57 501 446 240 247 Hop . | . . . . . Pick Up 17 | 1 10 3 2 1 Fast Attach 12 | 6 4 1 . 1 Attach 2 | . . 2 . . Detach . | . . . . . Swap 16 | 1 8 5 1 1 Drop 13 | . 9 1 3 . Fire 62 | . 30 26 . 6 Melee 9 | . . 3 . 6 Ram . | . . . . . Kick . | . . . . . Crush 5 | . 4 1 . . Escape Stasis . | . . . . . Rewire . | . . . . . Trap . | . . . . . Miscellaneous . | . . . . . Route ------- -11/Scrapyard -10/Materials (discovered 5 exits: [*Mat x3] / [*Min x2]) -10/Mines (discovered 3 exits: [*Mat x2] / *Exi) -10/Exiles -9/Mines History --------- Turn | Location | Event 8 | -11/Scrapyard | Discovered new exit (range 14) 98 | -11/Scrapyard | Entered Materials 257 | -10/Materials | Discovered new exit (range 8) 307 | -10/Materials | Build established: Mutant 337 | -10/Materials | Central database locked down 454 | -10/Materials | Discovered new exit (range 16) 607 | -10/Materials | Discovered new exit (range 11) 825 | -10/Materials | Discovered new exit (range 3) 826 | -10/Materials | Discovered new exit (range 8) 1054 | -10/Materials | Entered Mines 1081 | -10/Mines | Met a Derelict bent on vengeance 1093 | -10/Mines | Core integrity fell below 50% 1119 | -10/Mines | Lost 3 parts (1p1n1u) 1161 | -10/Mines | A weapon hastily lodged in a ceiling crevice suddenly fell to the ground 1218 | -10/Mines | Learned location of Zion (-6) 1308 | -10/Mines | Deemed a non-threat by the Exiles lab entrance 1308 | -10/Mines | Discovered new exit (range 5) 1412 | -10/Mines | Discovered new exit (range 11) 1583 | -10/Mines | Discovered new exit (range 5) 1719 | -10/Mines | Learned Materials terminal intel 1775 | -10/Mines | Learned Materials terminal intel 1859 | -10/Mines | Entered Exiles 1903 | -10/Exiles | Met 8R-AWN 1928 | -10/Exiles | Met EX-HEX 1973 | -10/Exiles | Met EX-BIN 1992 | -10/Exiles | Aligned with FarCom system 1994 | -10/Exiles | Given EX-Vault access code 2034 | -10/Exiles | Opened EX-Vault 2042 | -10/Exiles | Found Superbattery 2075 | -10/Exiles | Warned to stay clear of 0b10 Research branches 2122 | -10/Exiles | Met EX-DEC 2243 | -10/Exiles | Discovered new exit (range 14) 2274 | -10/Exiles | Left Exiles lab with Superbattery 2274 | -10/Exiles | Entered Mines 2828 | -9/Mines | Assembled infested the area 2882 | -9/Mines | Core integrity fell below 20% 2889 | -9/Mines | Destroyed by D-53 Grenadier with Mini Grenade Launcher Last Messages --------------- 02828_ ALERT: Infestation in the mines, dispatching Demolisher response squad. 02844_ as-45283 destroyed. 02847_ U-05 Engineer destroyed. 02850_ as-58895 destroyed. 02872_ as-97808 destroyed. 02872_ as-69259 destroyed. 02874_ as-99707 destroyed. 02877_ as-08128 destroyed. 02878_ D-53 Grenadier destroyed. 02880_ Acquired 41 matter. 02881_ Hrd. Light Armor Plating destroyed. 02882_ K-01 Serf collects debris. 02883_ Wheel destroyed. 02883_ Destroyed Lgt. Deuterium Engine. 02885_ Beam Cannon destroyed. 02885_ Destroyed Shock Absorption System. 02886_ The unstable cave ceiling collapses. 02887_ Lgt. Treads destroyed. 02887_ as-77451 destroyed. Map ----- +----------------------------------------------------+ | ?????????????????????????????????????????????????? | | ?????????????????????????????????????????????????? | | ?????????????????????????????????????????????????? | | ?????????????????????????????????????????????????? | | ?????????????????????????????????????????????????? | | ?????????????????????????????????????????????????? | | ?????????????????????????????????????????????????? | | ?????????????????????????????????????????????????? | | ?????????????????????????????????????????????????? | | ?????????????????????????????????????????????????? | | ?????????????????????????????????????????????????? | | ?????????????????????????????????????????????????? | | ?????????????????? ??????????????##?????????????? | | ????????????????? ???????????? ??????????????? | | ?????????????????? ???????????? #??????????????? | | ??????????????????? #?####?????!%#??????????????? | | ??????????????????? ## ######%!#??????????????? | | ???????????????????? # a|%=#??????????????? | | ????????????????????# #####??????????????? | | ????????????????????# %=##??????????????????? | | ????????????????????# %* ???????????????????? | | ????????????????????# #???????????????????? | | ?????????????????????# #???????????????????? | | ????????????????????## #???????????????????? | | ????????????????????# ##??????????????????? | | ?????????????????????# @d #??????????????????? | | ??????????????#?????# = ####???????????????? | | ??????????????# ????## k #???????????????? | | ??????????????? ?????# #???????????????? | | ??????????????? ????## ####???????????????? | | ???????????????# #????### #?????????????????? | | ???????????????# #??????# ####?????????????????? | | ?????????####### ###????# #????????????????????? | | ?????????# #????## #????????????????????? | | ?????????# """ """ ####??#% #????????????????????? | | ?????????# """ """ #??# #????????????????????? | | ?????????# """ """ #g #??# #????????????????????? | | ?????????# # #??# #????????????????????? | | ?????????# """ """ # #??# #????????????????????? | | ?????????# """ """ # g#??# k#######??????????????? | | #????????# """ """ # #??# ##?????????????? | | ##???????# # #??# ##????????????? | | ##??????# """ """ #l #?## ##???????????? | | #??????# """ """ # #?# ###?????????? | | ##?????# """ """ # #?# ##????????? | | ##????# # #?# ##???????? | | ##???### ####### #?## ### #???????? | | #?????# #?????# #??# #?# ##??????? | | #?????# ###???# #### #?## ##?????? | | #?????# #???# ## ## ##??## ##????? | +----------------------------------------------------+ Best States ------------- Heat Dissipation 39 Energy Generation 10 Energy Capacity 250 Matter Stores 300 Matter Capacity 300 Sight Range 16 Terrain Scan Density 10 Armor Coverage 150 Evasion (%) 40 Recoil Reduction 2 Item Schematics ----------------- None Robot Schematics ------------------ None Fabricated ------------ Nothing Alien Tech Used ----------------- None Achievements -------------- None Challenges ------------ None Game ------ Seed ConstructHeartMultirail Manual? 0 Play Time 00:15:44 Cumulative 157.0 hours Start 2024.11.01 @ 01:22:02 End 2024.11.01 @ 01:37:52 Sessions 1 Manual Loads 0 Difficulty Rogue Special Mode None Game No. 101 Rogue 65 Adventurer 36 Explorer 0 Win Type - Total 3 Types 2/0/0/1/0/0/0/0/0 Lore% 55 Gallery% 63 Achievement% 56 Wizard Run 0 Options --------- Layout 1 ASCII 0 Keyboard 0 Movement Numpad Keybinds 0 Fullscreen 1 Font 48/Smallcaps Map View 50x35 Zoom Use 0% Tactical HUD 1 Map Filters NONE Filters NONE Steam 1 RUN: a7c8a8a7-a4d4-4c72-8744-bc268b1e7e64